Workbook

Sheet 日可照時間
A1: 緯度(度) | B1: 緯度(分)
A2: 35 | B2: 17
A3: 日付 | B3: 通産日数D | C3: 太陽赤緯δ(rad) | D3: 日没時の時角ω0 (rad) | E3: 日可照時間(h)
A4: 2019-01-01 | B4: 1 | C4: =0.4093*COS(0.01689*(B4-173)) -> -0.3979055047 | D4: =ACOS(-TAN(RADIANS($A$2+$B$2/60))*TAN(C4)) -> 1.268802673 | E4: =24*D4/PI() -> 9.692938423
A5: 2019-01-02 | B5: 2 | C5: =0.4093*COS(0.01689*(B5-173)) -> -0.3962289981 | D5: =ACOS(-TAN(RADIANS($A$2+$B$2/60))*TAN(C5)) -> 1.270263367 | E5: =24*D5/PI() -> 9.704097307
A6: 2019-01-03 | B6: 3 | C6: -0.3944394611 | D6: 1.271819555 | E6: 9.715985709
A7: 2019-01-04 | B7: 4 | C7: -0.3925374042 | D7: 1.273470236 | E7: 9.72859598
A8: 2019-01-05 | B8: 5 | C8: -0.3905233699 | D8: 1.275214356 | E8: 9.741920078
A9: 2019-01-06 | B9: 6 | C9: -0.388397933 | D9: 1.277050815 | E9: 9.755949588
A10: 2019-01-07 | B10: 7 | C10: -0.3861616995 | D10: 1.278978463 | E10: 9.770675737
A11: 2019-01-08 | B11: 8 | C11: -0.3838153075 | D11: 1.280996108 | E11: 9.786089412
A12: 2019-01-09 | B12: 9 | C12: -0.3813594263 | D12: 1.283102516 | E12: 9.802181182
A13: 2019-01-10 | B13: 10 | C13: -0.3787947565 | D13: 1.285296412 | E13: 9.818941313
A14: 2019-01-11 | B14: 11 | C14: -0.3761220297 | D14: 1.287576486 | E14: 9.83635979
A15: 2019-01-12 | B15: 12 | C15: -0.3733420083 | D15: 1.289941391 | E15: 9.854426334
A16: 2019-01-13 | B16: 13 | C16: -0.3704554854 | D16: 1.29238975 | E16: 9.873130425
A17: 2019-01-14 | B17: 14 | C17: -0.3674632844 | D17: 1.294920158 | E17: 9.892461317
A18: 2019-01-15 | B18: 15 | C18: -0.3643662589 | D18: 1.297531181 | E18: 9.91240806
A19: 2019-01-16 | B19: 16 | C19: -0.3611652923 | D19: 1.300221361 | E19: 9.932959519
A20: 2019-01-17 | B20: 17 | C20: -0.3578612977 | D20: 1.302989218 | E20: 9.954104394
A21: 2019-01-18 | B21: 18 | C21: -0.3544552178 | D21: 1.305833255 | E21: 9.975831237
A22: 2019-01-19 | B22: 19 | C22: -0.3509480241 | D22: 1.308751956 | E22: 9.998128471
A23: 2019-01-20 | B23: 20 | C23: -0.347340717 | D23: 1.311743792 | E23: 10.02098441
A24: 2019-01-21 | B24: 21 | C24: -0.3436343258 | D24: 1.31480722 | E24: 10.04438728
A25: 2019-01-22 | B25: 22 | C25: -0.3398299075 | D25: 1.317940689 | E25: 10.06832522
A26: 2019-01-23 | B26: 23 | C26: -0.3359285476 | D26: 1.32114264 | E26: 10.09278632
A27: 2019-01-24 | B27: 24 | C27: -0.3319313589 | D27: 1.324411509 | E27: 10.11775864
A28: 2019-01-25 | B28: 25 | C28: -0.3278394817 | D28: 1.327745728 | E28: 10.1432302
A29: 2019-01-26 | B29: 26 | C29: -0.3236540833 | D29: 1.331143728 | E29: 10.169189
A30: 2019-01-27 | B30: 27 | C30: -0.3193763575 | D30: 1.334603941 | E30: 10.19562308
A31: 2019-01-28 | B31: 28 | C31: -0.3150075248 | D31: 1.338124801 | E31: 10.22252047
A32: 2019-01-29 | B32: 29 | C32: -0.3105488314 | D32: 1.341704747 | E32: 10.24986925
A33: 2019-01-30 | B33: 30 | C33: -0.3060015491 | D33: 1.345342224 | E33: 10.27765752
A34: 2019-01-31 | B34: 31 | C34: -0.3013669753 | D34: 1.349035684 | E34: 10.30587348
A35: 2019-02-01 | B35: 32 | C35: -0.2966464318 | D35: 1.352783588 | E35: 10.33450536
A36: 2019-02-02 | B36: 33 | C36: -0.2918412655 | D36: 1.356584409 | E36: 10.3635415
A37: 2019-02-03 | B37: 34 | C37: -0.2869528469 | D37: 1.360436631 | E37: 10.3929703
A38: 2019-02-04 | B38: 35 | C38: -0.2819825707 | D38: 1.364338751 | E38: 10.4227803
A39: 2019-02-05 | B39: 36 | C39: -0.2769318546 | D39: 1.36828928 | E39: 10.45296012
A40: 2019-02-06 | B40: 37 | C40: -0.2718021394 | D40: 1.372286744 | E40: 10.48349849
A41: 2019-02-07 | B41: 38 | C41: -0.2665948885 | D41: 1.376329687 | E41: 10.5143843
A42: 2019-02-08 | B42: 39 | C42: -0.2613115874 | D42: 1.380416669 | E42: 10.54560655
A43: 2019-02-09 | B43: 40 | C43: -0.2559537431 | D43: 1.384546267 | E43: 10.57715436
A44: 2019-02-10 | B44: 41 | C44: -0.2505228841 | D44: 1.38871708 | E44: 10.60901701
A45: 2019-02-11 | B45: 42 | C45: -0.2450205596 | D45: 1.392927721 | E45: 10.64118395
A46: 2019-02-12 | B46: 43 | C46: -0.2394483392 | D46: 1.397176828 | E46: 10.67364473
A47: 2019-02-13 | B47: 44 | C47: -0.2338078125 | D47: 1.401463056 | E47: 10.7063891
A48: 2019-02-14 | B48: 45 | C48: -0.2281005886 | D48: 1.405785081 | E48: 10.73940694
A49: 2019-02-15 | B49: 46 | C49: -0.2223282955 | D49: 1.410141601 | E49: 10.7726883
A50: 2019-02-16 | B50: 47 | C50: -0.2164925798 | D50: 1.414531335 | E50: 10.8062234
A51: 2019-02-17 | B51: 48 | C51: -0.2105951063 | D51: 1.418953022 | E51: 10.8400026
A52: 2019-02-18 | B52: 49 | C52: -0.2046375573 | D52: 1.423405423 | E52: 10.87401643
A53: 2019-02-19 | B53: 50 | C53: -0.1986216324 | D53: 1.42788732 | E53: 10.90825561
A54: 2019-02-20 | B54: 51 | C54: -0.1925490475 | D54: 1.432397517 | E54: 10.94271098
A55: 2019-02-21 | B55: 52 | C55: -0.1864215351 | D55: 1.436934839 | E55: 10.97737356
A56: 2019-02-22 | B56: 53 | C56: -0.1802408431 | D56: 1.441498132 | E56: 11.01223455
A57: 2019-02-23 | B57: 54 | C57: -0.1740087346 | D57: 1.44608626 | E57: 11.04728527
A58: 2019-02-24 | B58: 55 | C58: -0.1677269875 | D58: 1.450698112 | E58: 11.08251722
A59: 2019-02-25 | B59: 56 | C59: -0.1613973937 | D59: 1.455332594 | E59: 11.11792206
A60: 2019-02-26 | B60: 57 | C60: -0.1550217588 | D60: 1.459988632 | E60: 11.15349157
A61: 2019-02-27 | B61: 58 | C61: -0.1486019016 | D61: 1.464665172 | E61: 11.1892177
A62: 2019-02-28 | B62: 59 | C62: -0.1421396534 | D62: 1.469361177 | E62: 11.22509254
A63: 2019-03-01 | B63: 60 | C63: -0.1356368577 | D63: 1.474075631 | E63: 11.26110831
A64: 2019-03-02 | B64: 61 | C64: -0.1290953695 | D64: 1.478807534 | E64: 11.29725738
A65: 2019-03-03 | B65: 62 | C65: -0.1225170548 | D65: 1.483555901 | E65: 11.33353224
A66: 2019-03-04 | B66: 63 | C66: -0.1159037903 | D66: 1.488319767 | E66: 11.3699255
A67: 2019-03-05 | B67: 64 | C67: -0.1092574625 | D67: 1.493098181 | E67: 11.40642989
A68: 2019-03-06 | B68: 65 | C68: -0.1025799673 | D68: 1.497890207 | E68: 11.44303827
A69: 2019-03-07 | B69: 66 | C69: =0.4093*COS(0.01689*(B69-173)) -> -0.09587320962 | D69: =ACOS(-TAN(RADIANS($A$2+$B$2/60))*TAN(C69)) -> 1.502694921 | E69: =24*D69/PI() -> 11.47974359
A70: 2019-03-08 | B70: 67 | C70: -0.08913910262 | D70: 1.507511418 | E70: 11.51653891
A71: 2019-03-09 | B71: 68 | C71: -0.08237956732 | D71: 1.512338799 | E71: 11.55341739
A72: 2019-03-10 | B72: 69 | C72: -0.07559653199 | D72: 1.517176182 | E72: 11.59037227
A73: 2019-03-11 | B73: 70 | C73: -0.06879193159 | D73: 1.522022694 | E73: 11.62739689
A74: 2019-03-12 | B74: 71 | C74: -0.06196770724 | D74: 1.526877471 | E74: 11.66448466
A75: 2019-03-13 | B75: 72 | C75: -0.05512580565 | D75: 1.531739661 | E75: 11.70162905
A76: 2019-03-14 | B76: 73 | C76: -0.04826817858 | D76: 1.536608418 | E76: 11.73882361
A77: 2019-03-15 | B77: 74 | C77: -0.04139678227 | D77: 1.541482904 | E77: 11.77606194
A78: 2019-03-16 | B78: 75 | C78: -0.0345135769 | D78: 1.546362289 | E78: 11.8133377
A79: 2019-03-17 | B79: 76 | C79: -0.027620526 | D79: 1.551245747 | E79: 11.85064457
A80: 2019-03-18 | B80: 77 | C80: -0.02071959592 | D80: 1.556132458 | E80: 11.88797629
A81: 2019-03-19 | B81: 78 | C81: -0.01381275526 | D81: 1.561021605 | E81: 11.92532662
A82: 2019-03-20 | B82: 79 | C82: -0.006901974297 | D82: 1.565912373 | E82: 11.96268934
A83: 2019-03-21 | B83: 80 | C83: 1.077555715e-05 | D83: 1.570803952 | E83: 12.00005825
A84: 2019-03-22 | B84: 81 | C84: 0.006923522338 | D84: 1.575695529 | E84: 12.03742715
A85: 2019-03-23 | B85: 82 | C85: 0.01383429408 | D85: 1.580586294 | E85: 12.07478984
A86: 2019-03-24 | B86: 83 | C86: 0.02074111937 | D86: 1.585475434 | E86: 12.11214012
A87: 2019-03-25 | B87: 84 | C87: 0.02764202795 | D87: 1.590362136 | E87: 12.14947177
A88: 2019-03-26 | B88: 85 | C88: 0.03453505121 | D88: 1.595245583 | E88: 12.18677856
A89: 2019-03-27 | B89: 86 | C89: 0.04141822282 | D89: 1.600124954 | E89: 12.2240542
A90: 2019-03-28 | B90: 87 | C90: 0.04828957924 | D90: 1.604999423 | E90: 12.26129241
A91: 2019-03-29 | B91: 88 | C91: 0.05514716033 | D91: 1.609868161 | E91: 12.29848683
A92: 2019-03-30 | B92: 89 | C92: 0.06198900984 | D92: 1.614730329 | E92: 12.33563105
A93: 2019-03-31 | B93: 90 | C93: 0.06881317604 | D93: 1.619585082 | E93: 12.37271863
A94: 2019-04-01 | B94: 91 | C94: 0.07561771222 | D94: 1.624431566 | E94: 12.40974305
A95: 2019-04-02 | B95: 92 | C95: 0.0824006773 | D95: 1.629268919 | E95: 12.4466977
A96: 2019-04-03 | B96: 93 | C96: 0.08916013632 | D96: 1.634096268 | E96: 12.48357593
A97: 2019-04-04 | B97: 94 | C97: 0.09589416104 | D97: 1.638912729 | E97: 12.52037098
A98: 2019-04-05 | B98: 95 | C98: 0.1026008305 | D98: 1.643717406 | E98: 12.55707601
A99: 2019-04-06 | B99: 96 | C99: 0.1092782315 | D99: 1.64850939 | E99: 12.59368407
A100: 2019-04-07 | B100: 97 | C100: 0.1159244592 | D100: 1.65328776 | E100: 12.63018813
A101: 2019-04-08 | B101: 98 | C101: 0.1225376176 | D101: 1.65805158 | E101: 12.66658103
A102: 2019-04-09 | B102: 99 | C102: 0.1291158204 | D102: 1.662799898 | E102: 12.70285551
A103: 2019-04-10 | B103: 100 | C103: 0.1356571909 | D103: 1.667531747 | E103: 12.73900417
A104: 2019-04-11 | B104: 101 | C104: 0.142159863 | D104: 1.672246145 | E104: 12.77501952
A105: 2019-04-12 | B105: 102 | C105: 0.1486219819 | D105: 1.676942092 | E105: 12.81089391
A106: 2019-04-13 | B106: 103 | C106: 0.1550417041 | D106: 1.681618569 | E106: 12.84661957
A107: 2019-04-14 | B107: 104 | C107: 0.1614171983 | D107: 1.686274541 | E107: 12.88218858
A108: 2019-04-15 | B108: 105 | C108: 0.1677466458 | D108: 1.690908954 | E108: 12.91759288
A109: 2019-04-16 | B109: 106 | C109: 0.1740282409 | D109: 1.695520734 | E109: 12.95282428
A110: 2019-04-17 | B110: 107 | C110: 0.1802601919 | D110: 1.700108787 | E110: 12.98787443
A111: 2019-04-18 | B111: 108 | C111: 0.1864407208 | D111: 1.704672 | E111: 13.02273481
A112: 2019-04-19 | B112: 109 | C112: 0.1925680647 | D112: 1.709209239 | E112: 13.05739676
A113: 2019-04-20 | B113: 110 | C113: 0.1986404756 | D113: 1.71371935 | E113: 13.09185147
A114: 2019-04-21 | B114: 111 | C114: 0.2046562212 | D114: 1.718201158 | E114: 13.12608996
A115: 2019-04-22 | B115: 112 | C115: 0.2106135856 | D115: 1.722653465 | E115: 13.16010308
A116: 2019-04-23 | B116: 113 | C116: 0.2165108691 | D116: 1.727075054 | E116: 13.19388153
A117: 2019-04-24 | B117: 114 | C117: 0.2223463897 | D117: 1.731464686 | E117: 13.22741585
A118: 2019-04-25 | B118: 115 | C118: 0.2281184825 | D118: 1.735821101 | E118: 13.26069641
A119: 2019-04-26 | B119: 116 | C119: 0.233825501 | D119: 1.740143016 | E119: 13.29371341
A120: 2019-04-27 | B120: 117 | C120: 0.2394658173 | D120: 1.74442913 | E120: 13.32645691
A121: 2019-04-28 | B121: 118 | C121: 0.2450378222 | D121: 1.748678119 | E121: 13.3589168
A122: 2019-04-29 | B122: 119 | C122: 0.2505399263 | D122: 1.752888639 | E122: 13.3910828
A123: 2019-04-30 | B123: 120 | C123: 0.2559705601 | D123: 1.757059325 | E123: 13.42294449
A124: 2019-05-01 | B124: 121 | C124: 0.2613281744 | D124: 1.761188793 | E124: 13.4544913
A125: 2019-05-02 | B125: 122 | C125: 0.2666112408 | D125: 1.765275639 | E125: 13.48571251
A126: 2019-05-03 | B126: 123 | C126: 0.2718182522 | D126: 1.769318443 | E126: 13.51659725
A127: 2019-05-04 | B127: 124 | C127: 0.2769477234 | D127: 1.773315763 | E127: 13.54713453
A128: 2019-05-05 | B128: 125 | C128: 0.2819981909 | D128: 1.777266143 | E128: 13.57731321
A129: 2019-05-06 | B129: 126 | C129: 0.2869682142 | D129: 1.78116811 | E129: 13.60712204
A130: 2019-05-07 | B130: 127 | C130: 0.2918563754 | D130: 1.785020174 | E130: 13.63654964
A131: 2019-05-08 | B131: 128 | C131: 0.29666128 | D131: 1.788820832 | E131: 13.66558453
A132: 2019-05-09 | B132: 129 | C132: 0.3013815575 | D132: 1.792568569 | E132: 13.69421514
A133: 2019-05-10 | B133: 130 | C133: =0.4093*COS(0.01689*(B133-173)) -> 0.3060158613 | D133: =ACOS(-TAN(RADIANS($A$2+$B$2/60))*TAN(C133)) -> 1.796261857 | E133: =24*D133/PI() -> 13.72242978
A134: 2019-05-11 | B134: 131 | C134: 0.3105628694 | D134: 1.799899157 | E134: 13.7502167
A135: 2019-05-12 | B135: 132 | C135: 0.3150212847 | D135: 1.803478922 | E135: 13.77756409
A136: 2019-05-13 | B136: 133 | C136: 0.3193898353 | D136: 1.806999595 | E136: 13.80446005
A137: 2019-05-14 | B137: 134 | C137: 0.3236672751 | D137: 1.810459616 | E137: 13.83089267
A138: 2019-05-15 | B138: 135 | C138: 0.3278523838 | D138: 1.81385742 | E138: 13.85684997
A139: 2019-05-16 | B139: 136 | C139: 0.3319439676 | D139: 1.817191437 | E139: 13.88231999
A140: 2019-05-17 | B140: 137 | C140: 0.3359408593 | D140: 1.8204601 | E140: 13.90729073
A141: 2019-05-18 | B141: 138 | C141: 0.3398419188 | D141: 1.82366184 | E141: 13.93175023
A142: 2019-05-19 | B142: 139 | C142: 0.3436460331 | D142: 1.826795093 | E142: 13.95568652
A143: 2019-05-20 | B143: 140 | C143: 0.3473521171 | D143: 1.829858301 | E143: 13.9790877
A144: 2019-05-21 | B144: 141 | C144: 0.3509591136 | D144: 1.832849911 | E144: 14.00194191
A145: 2019-05-22 | B145: 142 | C145: 0.3544659937 | D145: 1.835768381 | E145: 14.02423739
A146: 2019-05-23 | B146: 143 | C146: 0.3578717569 | D146: 1.838612183 | E146: 14.04596243
A147: 2019-05-24 | B147: 144 | C147: 0.3611754317 | D147: 1.841379801 | E147: 14.06710548
A148: 2019-05-25 | B148: 145 | C148: 0.3643760756 | D148: 1.844069736 | E148: 14.08765507
A149: 2019-05-26 | B149: 146 | C149: 0.3674727758 | D149: 1.84668051 | E149: 14.10759991
A150: 2019-05-27 | B150: 147 | C150: 0.3704646486 | D150: 1.849210664 | E150: 14.12692886
A151: 2019-05-28 | B151: 148 | C151: 0.3733508408 | D151: 1.851658766 | E151: 14.14563098
A152: 2019-05-29 | B152: 149 | C152: 0.3761305289 | D152: 1.854023409 | E152: 14.16369552
A153: 2019-05-30 | B153: 150 | C153: 0.37880292 | D153: 1.856303215 | E153: 14.18111196
A154: 2019-05-31 | B154: 151 | C154: 0.3813672518 | D154: 1.858496841 | E154: 14.19787003
A155: 2019-06-01 | B155: 152 | C155: 0.3838227927 | D155: 1.860602974 | E155: 14.2139597
A156: 2019-06-02 | B156: 153 | C156: 0.3861688423 | D156: 1.86262034 | E156: 14.22937124
A157: 2019-06-03 | B157: 154 | C157: 0.3884047314 | D157: 1.864547706 | E157: 14.24409523
A158: 2019-06-04 | B158: 155 | C158: 0.390529822 | D158: 1.866383879 | E158: 14.25812256
A159: 2019-06-05 | B159: 156 | C159: 0.392543508 | D159: 1.868127709 | E159: 14.27144445
A160: 2019-06-06 | B160: 157 | C160: 0.394445215 | D160: 1.869778097 | E160: 14.28405248
A161: 2019-06-07 | B161: 158 | C161: 0.3962344004 | D161: 1.871333989 | E161: 14.29593862
A162: 2019-06-08 | B162: 159 | C162: 0.3979105539 | D162: 1.872794384 | E162: 14.30709522
A163: 2019-06-09 | B163: 160 | C163: 0.3994731973 | D163: 1.874158335 | E163: 14.31751503
A164: 2019-06-10 | B164: 161 | C164: 0.4009218848 | D164: 1.875424949 | E164: 14.32719125
A165: 2019-06-11 | B165: 162 | C165: 0.4022562033 | D165: 1.876593393 | E165: 14.3361175
A166: 2019-06-12 | B166: 163 | C166: 0.403475772 | D166: 1.87766289 | E166: 14.34428786
A167: 2019-06-13 | B167: 164 | C167: 0.4045802431 | D167: 1.878632727 | E167: 14.35169687
A168: 2019-06-14 | B168: 165 | C168: 0.4055693014 | D168: 1.879502254 | E168: 14.35833956
A169: 2019-06-15 | B169: 166 | C169: 0.4064426649 | D169: 1.880270882 | E169: 14.36421145
A170: 2019-06-16 | B170: 167 | C170: 0.4072000844 | D170: 1.880938092 | E170: 14.36930856
A171: 2019-06-17 | B171: 168 | C171: 0.4078413438 | D171: 1.881503429 | E171: 14.37362742
A172: 2019-06-18 | B172: 169 | C172: 0.4083662603 | D172: 1.881966507 | E172: 14.37716507
A173: 2019-06-19 | B173: 170 | C173: 0.408774684 | D173: 1.88232701 | E173: 14.37991911
A174: 2019-06-20 | B174: 171 | C174: 0.4090664985 | D174: 1.882584688 | E174: 14.38188763
A175: 2019-06-21 | B175: 172 | C175: 0.4092416205 | D175: 1.882739367 | E175: 14.38306929
A176: 2019-06-22 | B176: 173 | C176: 0.4093 | D176: 1.882790938 | E176: 14.38346326
A177: 2019-06-23 | B177: 174 | C177: 0.4092416205 | D177: 1.882739367 | E177: 14.38306929
A178: 2019-06-24 | B178: 175 | C178: 0.4090664985 | D178: 1.882584688 | E178: 14.38188763
A179: 2019-06-25 | B179: 176 | C179: 0.408774684 | D179: 1.88232701 | E179: 14.37991911
A180: 2019-06-26 | B180: 177 | C180: 0.4083662603 | D180: 1.881966507 | E180: 14.37716507
A181: 2019-06-27 | B181: 178 | C181: 0.4078413438 | D181: 1.881503429 | E181: 14.37362742
A182: 2019-06-28 | B182: 179 | C182: 0.4072000844 | D182: 1.880938092 | E182: 14.36930856
A183: 2019-06-29 | B183: 180 | C183: 0.4064426649 | D183: 1.880270882 | E183: 14.36421145
A184: 2019-06-30 | B184: 181 | C184: 0.4055693014 | D184: 1.879502254 | E184: 14.35833956
A185: 2019-07-01 | B185: 182 | C185: 0.4045802431 | D185: 1.878632727 | E185: 14.35169687
A186: 2019-07-02 | B186: 183 | C186: 0.403475772 | D186: 1.87766289 | E186: 14.34428786
A187: 2019-07-03 | B187: 184 | C187: 0.4022562033 | D187: 1.876593393 | E187: 14.3361175
A188: 2019-07-04 | B188: 185 | C188: 0.4009218848 | D188: 1.875424949 | E188: 14.32719125
A189: 2019-07-05 | B189: 186 | C189: 0.3994731973 | D189: 1.874158335 | E189: 14.31751503
A190: 2019-07-06 | B190: 187 | C190: 0.3979105539 | D190: 1.872794384 | E190: 14.30709522
A191: 2019-07-07 | B191: 188 | C191: 0.3962344004 | D191: 1.871333989 | E191: 14.29593862
A192: 2019-07-08 | B192: 189 | C192: 0.394445215 | D192: 1.869778097 | E192: 14.28405248
A193: 2019-07-09 | B193: 190 | C193: 0.392543508 | D193: 1.868127709 | E193: 14.27144445
A194: 2019-07-10 | B194: 191 | C194: 0.390529822 | D194: 1.866383879 | E194: 14.25812256
A195: 2019-07-11 | B195: 192 | C195: 0.3884047314 | D195: 1.864547706 | E195: 14.24409523
A196: 2019-07-12 | B196: 193 | C196: 0.3861688423 | D196: 1.86262034 | E196: 14.22937124
A197: 2019-07-13 | B197: 194 | C197: =0.4093*COS(0.01689*(B197-173)) -> 0.3838227927 | D197: =ACOS(-TAN(RADIANS($A$2+$B$2/60))*TAN(C197)) -> 1.860602974 | E197: =24*D197/PI() -> 14.2139597
A198: 2019-07-14 | B198: 195 | C198: 0.3813672518 | D198: 1.858496841 | E198: 14.19787003
A199: 2019-07-15 | B199: 196 | C199: 0.37880292 | D199: 1.856303215 | E199: 14.18111196
A200: 2019-07-16 | B200: 197 | C200: 0.3761305289 | D200: 1.854023409 | E200: 14.16369552
... 168 more rows

Sheet 月消費水量
A1: 月 | B1: 日平均可照時間の年可照時間に対する割合(%) | C1: 月の日数 | D1: 月平均気温 (℃) | E1: 蒸発散位ETP (mm/d)
A2: 1 | B2: 0.2264715192 | C2: 31 | D2: 4.5 | E2: =B2*(0.46*D2+8) -> 2.280568198
A3: 2 | B3: 0.2448473415 | C3: 28 | D3: 5.8 | E3: =B3*(0.46*D3+8) -> 2.612031439
A4: 3 | B4: 0.2687326444 | C4: 31 | D4: 8.2 | E4: 3.16352069
A5: 4 | B5: 0.2940700297 | C5: 30 | D5: 11.9 | E5: 3.962299581
A6: 5 | B6: 0.3153105069 | C6: 31 | D6: 18.5 | E6: 5.205776469
A7: 6 | B7: 0.3261289865 | C7: 30 | D7: 22.1 | E7: 5.924459169
A8: 7 | B8: 0.3215777095 | C8: 31 | D8: 25.3 | E8: 6.315143059
A9: 8 | B9: 0.3035903732 | C9: 31 | D9: 28.4 | E9: 6.394827621
A10: 9 | B10: 0.2792756425 | C10: 30 | D10: 25.4 | E10: 5.497261747
A11: 10 | B11: 0.253839236 | C11: 31 | D11: 19.4 | E11: 4.29597523
A12: 11 | B12: 0.2320058094 | C12: 30 | D12: 12.5 | E12: 3.19007988
A13: 12 | B13: 0.2201509267 | C13: 31 | D13: 7.7 | E13: 2.540981996

Sheet 作物係数
A1: 田植え後の積算日数 (日) | B1: 作物係数 Kc | C1: 日付 | D1: 蒸発散位ETP (mm/day) | E1: 消費水量(実蒸発量) (mm/day)
A2: 1 | B2: 1.05 | C2: 2019-05-01 | D2: 5.205776469 | E2: =B2*D2 -> 5.466065292
A3: 2 | B3: 1.05 | C3: 2019-05-02 | D3: 5.205776469 | E3: =B3*D3 -> 5.466065292
A4: 3 | B4: 1.05 | C4: 2019-05-03 | D4: 5.205776469 | E4: 5.466065292
A5: 4 | B5: 1.05 | C5: 2019-05-04 | D5: 5.205776469 | E5: 5.466065292
A6: 5 | B6: 1.05 | C6: 2019-05-05 | D6: 5.205776469 | E6: 5.466065292
A7: 6 | B7: 1.05 | C7: 2019-05-06 | D7: 5.205776469 | E7: 5.466065292
A8: 7 | B8: 1.05 | C8: 2019-05-07 | D8: 5.205776469 | E8: 5.466065292
A9: 8 | B9: 1.05 | C9: 2019-05-08 | D9: 5.205776469 | E9: 5.466065292
A10: 9 | B10: 1.05 | C10: 2019-05-09 | D10: 5.205776469 | E10: 5.466065292
A11: 10 | B11: 1.05 | C11: 2019-05-10 | D11: 5.205776469 | E11: 5.466065292
A12: 11 | B12: 1.05 | C12: 2019-05-11 | D12: 5.205776469 | E12: 5.466065292
A13: 12 | B13: 1.05 | C13: 2019-05-12 | D13: 5.205776469 | E13: 5.466065292
A14: 13 | B14: 1.05 | C14: 2019-05-13 | D14: 5.205776469 | E14: 5.466065292
A15: 14 | B15: 1.05 | C15: 2019-05-14 | D15: 5.205776469 | E15: 5.466065292
A16: 15 | B16: 1.05 | C16: 2019-05-15 | D16: 5.205776469 | E16: 5.466065292
A17: 16 | B17: 1.05 | C17: 2019-05-16 | D17: 5.205776469 | E17: 5.466065292
A18: 17 | B18: 1.05 | C18: 2019-05-17 | D18: 5.205776469 | E18: 5.466065292
A19: 18 | B19: 1.05 | C19: 2019-05-18 | D19: 5.205776469 | E19: 5.466065292
A20: 19 | B20: 1.05 | C20: 2019-05-19 | D20: 5.205776469 | E20: 5.466065292
A21: 20 | B21: 1.05 | C21: 2019-05-20 | D21: 5.205776469 | E21: 5.466065292
A22: 21 | B22: 1.05 | C22: 2019-05-21 | D22: 5.205776469 | E22: 5.466065292
A23: 22 | B23: 1.05 | C23: 2019-05-22 | D23: 5.205776469 | E23: 5.466065292
A24: 23 | B24: 1.05 | C24: 2019-05-23 | D24: 5.205776469 | E24: 5.466065292
A25: 24 | B25: 1.05 | C25: 2019-05-24 | D25: 5.205776469 | E25: 5.466065292
A26: 25 | B26: 1.05 | C26: 2019-05-25 | D26: 5.205776469 | E26: 5.466065292
A27: 26 | B27: 1.05 | C27: 2019-05-26 | D27: 5.205776469 | E27: 5.466065292
A28: 27 | B28: 1.05 | C28: 2019-05-27 | D28: 5.205776469 | E28: 5.466065292
A29: 28 | B29: 1.05 | C29: 2019-05-28 | D29: 5.205776469 | E29: 5.466065292
A30: 29 | B30: 1.05 | C30: 2019-05-29 | D30: 5.205776469 | E30: 5.466065292
A31: 30 | B31: 1.05 | C31: 2019-05-30 | D31: 5.205776469 | E31: 5.466065292
A32: 31 | B32: =(1.2-1.05)/30*(A32-30)+1.05 -> 1.055 | C32: 2019-05-31 | D32: 5.205776469 | E32: 5.492094174
A33: 32 | B33: =(1.2-1.05)/30*(A33-30)+1.05 -> 1.06 | C33: 2019-06-01 | D33: 5.924459169 | E33: 6.279926719
A34: 33 | B34: 1.065 | C34: 2019-06-02 | D34: 5.924459169 | E34: 6.309549015
A35: 34 | B35: 1.07 | C35: 2019-06-03 | D35: 5.924459169 | E35: 6.339171311
A36: 35 | B36: 1.075 | C36: 2019-06-04 | D36: 5.924459169 | E36: 6.368793607
A37: 36 | B37: 1.08 | C37: 2019-06-05 | D37: 5.924459169 | E37: 6.398415903
A38: 37 | B38: 1.085 | C38: 2019-06-06 | D38: 5.924459169 | E38: 6.428038198
A39: 38 | B39: 1.09 | C39: 2019-06-07 | D39: 5.924459169 | E39: 6.457660494
A40: 39 | B40: 1.095 | C40: 2019-06-08 | D40: 5.924459169 | E40: 6.48728279
A41: 40 | B41: 1.1 | C41: 2019-06-09 | D41: 5.924459169 | E41: 6.516905086
A42: 41 | B42: 1.105 | C42: 2019-06-10 | D42: 5.924459169 | E42: 6.546527382
A43: 42 | B43: 1.11 | C43: 2019-06-11 | D43: 5.924459169 | E43: 6.576149678
A44: 43 | B44: 1.115 | C44: 2019-06-12 | D44: 5.924459169 | E44: 6.605771974
A45: 44 | B45: 1.12 | C45: 2019-06-13 | D45: 5.924459169 | E45: 6.635394269
A46: 45 | B46: 1.125 | C46: 2019-06-14 | D46: 5.924459169 | E46: 6.665016565
A47: 46 | B47: 1.13 | C47: 2019-06-15 | D47: 5.924459169 | E47: 6.694638861
A48: 47 | B48: 1.135 | C48: 2019-06-16 | D48: 5.924459169 | E48: 6.724261157
A49: 48 | B49: 1.14 | C49: 2019-06-17 | D49: 5.924459169 | E49: 6.753883453
A50: 49 | B50: 1.145 | C50: 2019-06-18 | D50: 5.924459169 | E50: 6.783505749
A51: 50 | B51: 1.15 | C51: 2019-06-19 | D51: 5.924459169 | E51: 6.813128044
A52: 51 | B52: 1.155 | C52: 2019-06-20 | D52: 5.924459169 | E52: 6.84275034
A53: 52 | B53: 1.16 | C53: 2019-06-21 | D53: 5.924459169 | E53: 6.872372636
A54: 53 | B54: 1.165 | C54: 2019-06-22 | D54: 5.924459169 | E54: 6.901994932
A55: 54 | B55: 1.17 | C55: 2019-06-23 | D55: 5.924459169 | E55: 6.931617228
A56: 55 | B56: 1.175 | C56: 2019-06-24 | D56: 5.924459169 | E56: 6.961239524
A57: 56 | B57: 1.18 | C57: 2019-06-25 | D57: 5.924459169 | E57: 6.990861819
A58: 57 | B58: 1.185 | C58: 2019-06-26 | D58: 5.924459169 | E58: 7.020484115
A59: 58 | B59: 1.19 | C59: 2019-06-27 | D59: 5.924459169 | E59: 7.050106411
A60: 59 | B60: 1.195 | C60: 2019-06-28 | D60: 5.924459169 | E60: 7.079728707
A61: 60 | B61: 1.2 | C61: 2019-06-29 | D61: 5.924459169 | E61: 7.109351003
A62: 61 | B62: 1.2 | C62: 2019-06-30 | D62: 5.924459169 | E62: 7.109351003
A63: 62 | B63: 1.2 | C63: 2019-07-01 | D63: 6.315143059 | E63: 7.578171671
A64: 63 | B64: 1.2 | C64: 2019-07-02 | D64: 6.315143059 | E64: 7.578171671
A65: 64 | B65: 1.2 | C65: 2019-07-03 | D65: 6.315143059 | E65: 7.578171671
A66: 65 | B66: 1.2 | C66: 2019-07-04 | D66: 6.315143059 | E66: 7.578171671
A67: 66 | B67: 1.2 | C67: 2019-07-05 | D67: 6.315143059 | E67: =B67*D67 -> 7.578171671
A68: 67 | B68: 1.2 | C68: 2019-07-06 | D68: 6.315143059 | E68: 7.578171671
A69: 68 | B69: 1.2 | C69: 2019-07-07 | D69: 6.315143059 | E69: 7.578171671
A70: 69 | B70: 1.2 | C70: 2019-07-08 | D70: 6.315143059 | E70: 7.578171671
A71: 70 | B71: 1.2 | C71: 2019-07-09 | D71: 6.315143059 | E71: 7.578171671
A72: 71 | B72: 1.2 | C72: 2019-07-10 | D72: 6.315143059 | E72: 7.578171671
A73: 72 | B73: 1.2 | C73: 2019-07-11 | D73: 6.315143059 | E73: 7.578171671
A74: 73 | B74: 1.2 | C74: 2019-07-12 | D74: 6.315143059 | E74: 7.578171671
A75: 74 | B75: 1.2 | C75: 2019-07-13 | D75: 6.315143059 | E75: 7.578171671
A76: 75 | B76: 1.2 | C76: 2019-07-14 | D76: 6.315143059 | E76: 7.578171671
A77: 76 | B77: 1.2 | C77: 2019-07-15 | D77: 6.315143059 | E77: 7.578171671
A78: 77 | B78: 1.2 | C78: 2019-07-16 | D78: 6.315143059 | E78: 7.578171671
A79: 78 | B79: 1.2 | C79: 2019-07-17 | D79: 6.315143059 | E79: 7.578171671
A80: 79 | B80: 1.2 | C80: 2019-07-18 | D80: 6.315143059 | E80: 7.578171671
A81: 80 | B81: 1.2 | C81: 2019-07-19 | D81: 6.315143059 | E81: 7.578171671
A82: 81 | B82: 1.2 | C82: 2019-07-20 | D82: 6.315143059 | E82: 7.578171671
A83: 82 | B83: 1.2 | C83: 2019-07-21 | D83: 6.315143059 | E83: 7.578171671
A84: 83 | B84: 1.2 | C84: 2019-07-22 | D84: 6.315143059 | E84: 7.578171671
A85: 84 | B85: 1.2 | C85: 2019-07-23 | D85: 6.315143059 | E85: 7.578171671
A86: 85 | B86: 1.2 | C86: 2019-07-24 | D86: 6.315143059 | E86: 7.578171671
A87: 86 | B87: 1.2 | C87: 2019-07-25 | D87: 6.315143059 | E87: 7.578171671
A88: 87 | B88: 1.2 | C88: 2019-07-26 | D88: 6.315143059 | E88: 7.578171671
A89: 88 | B89: 1.2 | C89: 2019-07-27 | D89: 6.315143059 | E89: 7.578171671
A90: 89 | B90: 1.2 | C90: 2019-07-28 | D90: 6.315143059 | E90: 7.578171671
A91: 90 | B91: 1.2 | C91: 2019-07-29 | D91: 6.315143059 | E91: 7.578171671
A92: 91 | B92: 1.2 | C92: 2019-07-30 | D92: 6.315143059 | E92: 7.578171671
A93: 92 | B93: 1.2 | C93: 2019-07-31 | D93: 6.315143059 | E93: 7.578171671
A94: 93 | B94: 1.2 | C94: 2019-08-01 | D94: 6.394827621 | E94: 7.673793145
A95: 94 | B95: 1.2 | C95: 2019-08-02 | D95: 6.394827621 | E95: 7.673793145
A96: 95 | B96: 1.2 | C96: 2019-08-03 | D96: 6.394827621 | E96: 7.673793145
A97: 96 | B97: 1.2 | C97: 2019-08-04 | D97: 6.394827621 | E97: 7.673793145
A98: 97 | B98: 1.2 | C98: 2019-08-05 | D98: 6.394827621 | E98: 7.673793145
A99: 98 | B99: 1.2 | C99: 2019-08-06 | D99: 6.394827621 | E99: 7.673793145
A100: 99 | B100: 1.2 | C100: 2019-08-07 | D100: 6.394827621 | E100: 7.673793145
A101: 100 | B101: 1.2 | C101: 2019-08-08 | D101: 6.394827621 | E101: 7.673793145
A102: 101 | B102: 1.2 | C102: 2019-08-09 | D102: 6.394827621 | E102: 7.673793145
A103: 102 | B103: 1.2 | C103: 2019-08-10 | D103: 6.394827621 | E103: 7.673793145
A104: 103 | B104: 1.2 | C104: 2019-08-11 | D104: 6.394827621 | E104: 7.673793145
A105: 104 | B105: 1.2 | C105: 2019-08-12 | D105: 6.394827621 | E105: 7.673793145
A106: 105 | B106: 1.2 | C106: 2019-08-13 | D106: 6.394827621 | E106: 7.673793145
A107: 106 | B107: 1.2 | C107: 2019-08-14 | D107: 6.394827621 | E107: 7.673793145
A108: 107 | B108: 1.2 | C108: 2019-08-15 | D108: 6.394827621 | E108: 7.673793145
A109: 108 | B109: 1.2 | C109: 2019-08-16 | D109: 6.394827621 | E109: 7.673793145
A110: 109 | B110: 1.2 | C110: 2019-08-17 | D110: 6.394827621 | E110: 7.673793145
A111: 110 | B111: 1.2 | C111: 2019-08-18 | D111: 6.394827621 | E111: 7.673793145
A112: 111 | B112: 1.2 | C112: 2019-08-19 | D112: 6.394827621 | E112: 7.673793145
A113: 112 | B113: 1.2 | C113: 2019-08-20 | D113: 6.394827621 | E113: 7.673793145
A114: 113 | B114: 1.2 | C114: 2019-08-21 | D114: 6.394827621 | E114: 7.673793145
A115: 114 | B115: 1.2 | C115: 2019-08-22 | D115: 6.394827621 | E115: 7.673793145
A116: 115 | B116: 1.2 | C116: 2019-08-23 | D116: 6.394827621 | E116: 7.673793145
A117: 116 | B117: 1.2 | C117: 2019-08-24 | D117: 6.394827621 | E117: 7.673793145
A118: 117 | B118: 1.2 | C118: 2019-08-25 | D118: 6.394827621 | E118: 7.673793145
A119: 118 | B119: 1.2 | C119: 2019-08-26 | D119: 6.394827621 | E119: 7.673793145
A120: 119 | B120: 1.2 | C120: 2019-08-27 | D120: 6.394827621 | E120: 7.673793145
A121: 120 | B121: 1.2 | C121: 2019-08-28 | D121: 6.394827621 | E121: 7.673793145
A122: 121 | B122: 1.2 | C122: 2019-08-29 | D122: 6.394827621 | E122: 7.673793145
A123: 122 | B123: 1.2 | C123: 2019-08-30 | D123: 6.394827621 | E123: 7.673793145
A124: 123 | B124: 1.2 | C124: 2019-08-31 | D124: 6.394827621 | E124: 7.673793145
A125: 124 | B125: 1.2 | C125: 2019-09-01 | D125: 5.497261747 | E125: 6.596714096
A126: 125 | B126: 1.2 | C126: 2019-09-02 | D126: 5.497261747 | E126: 6.596714096
A127: 126 | B127: 1.2 | C127: 2019-09-03 | D127: 5.497261747 | E127: 6.596714096
A128: 127 | B128: 1.2 | C128: 2019-09-04 | D128: 5.497261747 | E128: 6.596714096
A129: 128 | B129: 1.2 | C129: 2019-09-05 | D129: 5.497261747 | E129: 6.596714096
A130: 129 | B130: 1.2 | C130: 2019-09-06 | D130: 5.497261747 | E130: 6.596714096
A131: 130 | B131: 1.2 | C131: 2019-09-07 | D131: 5.497261747 | E131: =B131*D131 -> 6.596714096
A132: 131 | B132: 1.2 | C132: 2019-09-08 | D132: 5.497261747 | E132: 6.596714096
A133: 132 | B133: 1.2 | C133: 2019-09-09 | D133: 5.497261747 | E133: 6.596714096
A134: 133 | B134: 1.2 | C134: 2019-09-10 | D134: 5.497261747 | E134: 6.596714096
A135: 134 | B135: 1.2 | C135: 2019-09-11 | D135: 5.497261747 | E135: 6.596714096
A136: 135 | B136: 1.2 | C136: 2019-09-12 | D136: 5.497261747 | E136: 6.596714096
A137: 136 | B137: 1.2 | C137: 2019-09-13 | D137: 5.497261747 | E137: 6.596714096
A138: 137 | B138: 1.2 | C138: 2019-09-14 | D138: 5.497261747 | E138: 6.596714096
A139: 138 | B139: 1.2 | C139: 2019-09-15 | D139: 5.497261747 | E139: 6.596714096
A140: 139 | B140: 1.2 | C140: 2019-09-16 | D140: 5.497261747 | E140: 6.596714096
A141: 140 | B141: 1.2 | C141: 2019-09-17 | D141: 5.497261747 | E141: 6.596714096
A142: 141 | B142: =1.2+(0.75-1.2)/40*(A142-140) -> 1.18875 | C142: 2019-09-18 | D142: 5.497261747 | E142: 6.534869902
A143: 142 | B143: =1.2+(0.75-1.2)/40*(A143-140) -> 1.1775 | C143: 2019-09-19 | D143: 5.497261747 | E143: 6.473025707
A144: 143 | B144: 1.16625 | C144: 2019-09-20 | D144: 5.497261747 | E144: 6.411181513
A145: 144 | B145: 1.155 | C145: 2019-09-21 | D145: 5.497261747 | E145: 6.349337318
A146: 145 | B146: 1.14375 | C146: 2019-09-22 | D146: 5.497261747 | E146: 6.287493123
A147: 146 | B147: 1.1325 | C147: 2019-09-23 | D147: 5.497261747 | E147: 6.225648929
A148: 147 | B148: 1.12125 | C148: 2019-09-24 | D148: 5.497261747 | E148: 6.163804734
A149: 148 | B149: 1.11 | C149: 2019-09-25 | D149: 5.497261747 | E149: 6.101960539
A150: 149 | B150: 1.09875 | C150: 2019-09-26 | D150: 5.497261747 | E150: 6.040116345
A151: 150 | B151: 1.0875 | C151: 2019-09-27 | D151: 5.497261747 | E151: 5.97827215
A152: 151 | B152: 1.07625 | C152: 2019-09-28 | D152: 5.497261747 | E152: 5.916427955
A153: 152 | B153: 1.065 | C153: 2019-09-29 | D153: 5.497261747 | E153: 5.854583761
A154: 153 | B154: 1.05375 | C154: 2019-09-30 | D154: 5.497261747 | E154: 5.792739566
A155: 154 | B155: 1.0425 | C155: 2019-10-01 | D155: 4.29597523 | E155: 4.478554178
A156: 155 | B156: 1.03125 | C156: 2019-10-02 | D156: 4.29597523 | E156: 4.430224456
A157: 156 | B157: 1.02 | C157: 2019-10-03 | D157: 4.29597523 | E157: 4.381894735
A158: 157 | B158: 1.00875 | C158: 2019-10-04 | D158: 4.29597523 | E158: 4.333565014
A159: 158 | B159: 0.9975 | C159: 2019-10-05 | D159: 4.29597523 | E159: 4.285235292
A160: 159 | B160: 0.98625 | C160: 2019-10-06 | D160: 4.29597523 | E160: 4.236905571
A161: 160 | B161: 0.975 | C161: 2019-10-07 | D161: 4.29597523 | E161: 4.18857585
A162: 161 | B162: 0.96375 | C162: 2019-10-08 | D162: 4.29597523 | E162: 4.140246128
A163: 162 | B163: 0.9525 | C163: 2019-10-09 | D163: 4.29597523 | E163: 4.091916407
A164: 163 | B164: 0.94125 | C164: 2019-10-10 | D164: 4.29597523 | E164: 4.043586686
A165: 164 | B165: 0.93 | C165: 2019-10-11 | D165: 4.29597523 | E165: 3.995256964
A166: 165 | B166: 0.91875 | C166: 2019-10-12 | D166: 4.29597523 | E166: 3.946927243
A167: 166 | B167: 0.9075 | C167: 2019-10-13 | D167: 4.29597523 | E167: 3.898597522
A168: 167 | B168: 0.89625 | C168: 2019-10-14 | D168: 4.29597523 | E168: 3.8502678
A169: 168 | B169: 0.885 | C169: 2019-10-15 | D169: 4.29597523 | E169: 3.801938079
A170: 169 | B170: 0.87375 | C170: 2019-10-16 | D170: 4.29597523 | E170: 3.753608358
A171: 170 | B171: 0.8625 | C171: 2019-10-17 | D171: 4.29597523 | E171: 3.705278636
A172: 171 | B172: 0.85125 | C172: 2019-10-18 | D172: 4.29597523 | E172: 3.656948915
A173: 172 | B173: 0.84 | C173: 2019-10-19 | D173: 4.29597523 | E173: 3.608619193
A174: 173 | B174: 0.82875 | C174: 2019-10-20 | D174: 4.29597523 | E174: 3.560289472
A175: 174 | B175: 0.8175 | C175: 2019-10-21 | D175: 4.29597523 | E175: 3.511959751
A176: 175 | B176: 0.80625 | C176: 2019-10-22 | D176: 4.29597523 | E176: 3.463630029
A177: 176 | B177: 0.795 | C177: 2019-10-23 | D177: 4.29597523 | E177: 3.415300308
A178: 177 | B178: 0.78375 | C178: 2019-10-24 | D178: 4.29597523 | E178: 3.366970587
A179: 178 | B179: 0.7725 | C179: 2019-10-25 | D179: 4.29597523 | E179: 3.318640865
A180: 179 | B180: 0.76125 | C180: 2019-10-26 | D180: 4.29597523 | E180: 3.270311144
A181: 180 | B181: 0.75 | C181: 2019-10-27 | D181: 4.29597523 | E181: 3.221981423

Sheet 比較
A1: 入力データ | J1: 月 | K1: 平均気温(℃) | L1: 平均湿度(%) | M1: 平均風速(m/s) | N1: 日照時間(h/d) | O1: 降雨量(mm/d) | P1: 蒸発散位ET0 (mm/d) | Q1: ブラネイ・クリドル
A2: 地点 | B2: 緯度(°) | C2: 風速計地上高度(m) | D2: アルベド | J2: 1 | K2: 4.538709677 | L2: 76.51612903 | M2: 3.548387097 | N2: 3.083870968 | O2: 1.983870968 | P2: 1.048092508 | Q2: 2.280568198
A3: 彦根 | B3: 35.17 | C3: 19.7 | D3: 0.06 | J3: 2 | K3: 5.771428571 | L3: 73.60714286 | M3: 3.292857143 | N3: 3.853571429 | O3: 1.696428571 | P3: 1.524167689 | Q3: 2.612031439
J4: 3 | K4: 8.203225806 | L4: 73.29032258 | M4: 3.141935484 | N4: 4.929032258 | O4: 2.548387097 | P4: 2.176414727 | Q4: 3.16352069
A5: 年月日 | B5: 平均気温(℃) | C5: 平均湿度(%) | D5: 平均風速(m/s) | E5: 日照時間(h/d) | F5: 降雨量(mm/d) | G5: 蒸発散位ET0 (mm/d) | J5: 4 | K5: 11.89 | L5: 72.46666667 | M5: 3.016666667 | N5: 6.31 | O5: 3.866666667 | P5: 3.165517277 | Q5: 3.962299581
A6: 2019-01-01 | B6: 4.1 | C6: 75 | D6: 2.4 | E6: 7.4 | F6: 0 | G6: 0.7905229615 | J6: 5 | K6: 18.53548387 | L6: 64.03225806 | M6: 2.609677419 | N6: 8.767741935 | O6: 2.403225806 | P6: 4.987805607 | Q6: 5.205776469
A7: 2019-01-02 | B7: 4.7 | C7: 82 | D7: 4.4 | E7: 0.7 | F7: 1.5 | G7: 0.910134498 | J7: 6 | K7: 22.09333333 | L7: 75.76666667 | M7: 2.546666667 | N7: 6.07 | O7: 4.9 | P7: 4.557451129 | Q7: 5.924459169
A8: 2019-01-03 | B8: 3.7 | C8: 83 | D8: 3 | E8: 0 | F8: 6.5 | G8: 0.7522122516 | J8: 7 | K8: 25.26129032 | L8: 82.77419355 | M8: 2.103225806 | N8: 3.974193548 | O8: 8.161290323 | P8: 4.014085906 | Q8: 6.315143059
A9: 2019-01-04 | B9: 4.5 | C9: 79 | D9: 1.9 | E9: 7.6 | F9: 0 | G9: 0.7161870345 | J9: 8 | K9: 28.39354839 | L9: 74.77419355 | M9: 2.738709677 | N9: 7.064516129 | O9: 6.403225806 | P9: 5.544656565 | Q9: 6.394827621
A10: 2019-01-05 | B10: 6.1 | C10: 86 | D10: 2.6 | E10: 0.6 | F10: 1.5 | G10: 0.7284408136 | J10: 9 | K10: 25.44333333 | L10: 74.1 | M10: 2.903333333 | N10: 6.353333333 | O10: 1.783333333 | P10: 4.398213531 | Q10: 5.497261747
A11: 2019-01-06 | B11: 5.1 | C11: 66 | D11: 5.4 | E11: 0.7 | F11: 0 | G11: 1.571181581 | J11: 10 | K11: 19.40645161 | L11: 78.19354839 | M11: 3.187096774 | N11: 4.625806452 | O11: 8.419354839 | P11: 2.570888622 | Q11: 4.29597523
A12: 2019-01-07 | B12: 6.1 | C12: 62 | D12: 3 | E12: 6.8 | F12: 0 | G12: 1.25388463 | J12: 11 | K12: 12.45 | L12: 71.63333333 | M12: 3.3 | N12: 5.986666667 | O12: 1.133333333 | P12: 1.789159967 | Q12: 3.19007988
A13: 2019-01-08 | B13: 6.5 | C13: 69 | D13: 3.6 | E13: 1 | F13: 0 | G13: 1.290521251 | J13: 12 | K13: 7.693548387 | L13: 78.87096774 | M13: 3.029032258 | N13: 3.4 | O13: 2.35483871 | P13: 0.9694057975 | Q13: 2.540981996
A14: 2019-01-09 | B14: 3.1 | C14: 72 | D14: 6.3 | E14: 1.3 | F14: 3 | G14: 1.365714346
A15: 2019-01-10 | B15: 2.2 | C15: 75 | D15: 2.2 | E15: 0 | F15: 0 | G15: 0.8201262921 | P15: ダミー
A16: 2019-01-11 | B16: 6.8 | C16: 67 | D16: 4.6 | E16: 5.7 | F16: 0.5 | G16: 1.493797318 | P16: 0 | Q16: 7
A17: 2019-01-12 | B17: 3.6 | C17: 74 | D17: 1.5 | E17: 0 | F17: 0 | G17: 0.8180086522 | P17: 0 | Q17: 7
A18: 2019-01-13 | B18: 5.1 | C18: 72 | D18: 3.8 | E18: 9.3 | F18: 0 | G18: 1.162341238
A19: 2019-01-14 | B19: 4.9 | C19: 76 | D19: 2.7 | E19: 9.2 | F19: 0 | G19: 0.9639566792
A20: 2019-01-15 | B20: 4.2 | C20: 81 | D20: 1.4 | E20: 0 | F20: 0 | G20: 0.7202100037
A21: 2019-01-16 | B21: 4.6 | C21: 84 | D21: 4 | E21: 0.4 | F21: 1 | G21: 0.8692401286
A22: 2019-01-17 | B22: 5.3 | C22: 72 | D22: 3.3 | E22: 3.6 | F22: 4 | G22: 1.161358571
A23: 2019-01-18 | B23: 4.4 | C23: 75 | D23: 5 | E23: 0.5 | F23: 0.5 | G23: 1.231028512
A24: 2019-01-19 | B24: 5.7 | C24: 79 | D24: 1.9 | E24: 7.6 | F24: 0 | G24: 0.9375984378
A25: 2019-01-20 | B25: 5.4 | C25: 88 | D25: 3 | E25: 0.2 | F25: 11 | G25: 0.7424921159
A26: 2019-01-21 | B26: 3.4 | C26: 88 | D26: 3.4 | E26: 0.1 | F26: 2.5 | G26: 0.7098179783
A27: 2019-01-22 | B27: 4.8 | C27: 78 | D27: 3.9 | E27: 4.9 | F27: 1 | G27: 1.118744541
A28: 2019-01-23 | B28: 5.6 | C28: 76 | D28: 2.2 | E28: 7.3 | F28: 0.5 | G28: 1.066573666
A29: 2019-01-24 | B29: 4.2 | C29: 72 | D29: 6.4 | E29: 2.1 | F29: 0.5 | G29: 1.53204267
A30: 2019-01-25 | B30: 5 | C30: 64 | D30: 2.1 | E30: 2.9 | F30: 0 | G30: 1.211179569
A31: 2019-01-26 | B31: 2 | C31: 85 | D31: 6.9 | E31: 1.4 | F31: 8.5 | G31: 0.990505421
A32: 2019-01-27 | B32: 3.6 | C32: 76 | D32: 4.9 | E32: 1.9 | F32: 1 | G32: 1.220197961
A33: 2019-01-28 | B33: 3.9 | C33: 83 | D33: 3.2 | E33: 0.2 | F33: 5 | G33: 0.8712009739
A34: 2019-01-29 | B34: 4.1 | C34: 71 | D34: 5.8 | E34: 2.4 | F34: 1 | G34: 1.533587451
A35: 2019-01-30 | B35: 3.7 | C35: 76 | D35: 1.9 | E35: 9.8 | F35: 0 | G35: 1.109258111
A36: 2019-01-31 | B36: 4.3 | C36: 86 | D36: 3.3 | E36: 0 | F36: 12 | G36: 0.8288020886
A37: 2019-02-01 | B37: 2.6 | C37: 73 | D37: 5.3 | E37: 2.2 | F37: 0 | G37: 1.345003694
A38: 2019-02-02 | B38: 5.3 | C38: 70 | D38: 2.5 | E38: 7 | F38: 0 | G38: 1.348516394
A39: 2019-02-03 | B39: 4.7 | C39: 89 | D39: 1.4 | E39: 2.2 | F39: 9.5 | G39: 0.7715827327
A40: 2019-02-04 | B40: 8.2 | C40: 80 | D40: 4 | E40: 2 | F40: 3.5 | G40: 1.310032208
A41: 2019-02-05 | B41: 6.7 | C41: 68 | D41: 2 | E41: 8.7 | F41: 0 | G41: 1.496212392
A42: 2019-02-06 | B42: 6.5 | C42: 84 | D42: 1.7 | E42: 3.6 | F42: 0.5 | G42: 1.027737276
A43: 2019-02-07 | B43: 8.8 | C43: 86 | D43: 2.3 | E43: 1.3 | F43: 0 | G43: 1.022501282
A44: 2019-02-08 | B44: 4.6 | C44: 64 | D44: 5.3 | E44: 0.4 | F44: 0 | G44: 1.767895548
A45: 2019-02-09 | B45: 3.4 | C45: 67 | D45: 3 | E45: 0 | F45: 0 | G45: 1.267950977
A46: 2019-02-10 | B46: 2.9 | C46: 62 | D46: 5.8 | E46: 5.1 | F46: 0 | G46: 1.939605227
A47: 2019-02-11 | B47: 3 | C47: 79 | D47: 1.8 | E47: 0 | F47: 2 | G47: 0.8877204803
A48: 2019-02-12 | B48: 4.6 | C48: 79 | D48: 4.2 | E48: 1.6 | F48: 0 | G48: 1.243939092
A49: 2019-02-13 | B49: 5.2 | C49: 76 | D49: 3.7 | E49: 3.1 | F49: 0 | G49: 1.386239451
A50: 2019-02-14 | B50: 3.2 | C50: 66 | D50: 5.1 | E50: 3.2 | F50: 0.5 | G50: 1.728023283
A51: 2019-02-15 | B51: 2.9 | C51: 69 | D51: 1.7 | E51: 2.5 | F51: 0 | G51: 1.173861413
A52: 2019-02-16 | B52: 5.2 | C52: 76 | D52: 3.5 | E52: 1.8 | F52: 0 | G52: 1.333847368
A53: 2019-02-17 | B53: 4.6 | C53: 69 | D53: 3.9 | E53: 7.2 | F53: 0 | G53: 1.801675593
A54: 2019-02-18 | B54: 5.5 | C54: 70 | D54: 2 | E54: 8.2 | F54: 0 | G54: 1.658189745
A55: 2019-02-19 | B55: 6.9 | C55: 89 | D55: 1.4 | E55: 0 | F55: 12 | G55: 0.859576221
A56: 2019-02-20 | B56: 9.2 | C56: 89 | D56: 3.1 | E56: 1.9 | F56: 2.5 | G56: 1.194646785
A57: 2019-02-21 | B57: 6.7 | C57: 71 | D57: 5.6 | E57: 0.3 | F57: 0 | G57: 1.796452901
A58: 2019-02-22 | B58: 6.4 | C58: 72 | D58: 2.3 | E58: 5.8 | F58: 0 | G58: 1.66559178
A59: 2019-02-23 | B59: 7.7 | C59: 55 | D59: 6.7 | E59: 10.4 | F59: 0 | G59: 3.31623443
A60: 2019-02-24 | B60: 6.1 | C60: 66 | D60: 1.6 | E60: 8.9 | F60: 0 | G60: 1.873922776
A61: 2019-02-25 | B61: 8.5 | C61: 77 | D61: 2.3 | E61: 8.1 | F61: 0 | G61: 1.953230796
A62: 2019-02-26 | B62: 7.8 | C62: 62 | D62: 5.3 | E62: 10.6 | F62: 0 | G62: 2.912260473
A63: 2019-02-27 | B63: 6 | C63: 66 | D63: 1.7 | E63: 1.8 | F63: 0 | G63: 1.472929862
A64: 2019-02-28 | B64: 8.4 | C64: 87 | D64: 3 | E64: 0 | F64: 17 | G64: 1.121315126
A65: 2019-03-01 | B65: 9 | C65: 73 | D65: 4.6 | E65: 7.4 | F65: 0 | G65: 2.419199967
A66: 2019-03-02 | B66: 7.4 | C66: 60 | D66: 2.6 | E66: 9.9 | F66: 0 | G66: 2.462653956
A67: 2019-03-03 | B67: 7.1 | C67: 73 | D67: 1 | E67: 0 | F67: 1 | G67: 1.204839465
A68: 2019-03-04 | B68: 8.1 | C68: 89 | D68: 4.4 | E68: 0.1 | F68: 12.5 | G68: 1.174991332
A69: 2019-03-05 | B69: 9.6 | C69: 66 | D69: 3.9 | E69: 9.4 | F69: 0 | G69: 2.837529033
A70: 2019-03-06 | B70: 8.4 | C70: 78 | D70: 1.7 | E70: 0.9 | F70: 6 | G70: 1.363417185
A71: 2019-03-07 | B71: 7.8 | C71: 85 | D71: 5.7 | E71: 0.3 | F71: 6.5 | G71: 1.440634478
A72: 2019-03-08 | B72: 6.1 | C72: 64 | D72: 5.6 | E72: 9.4 | F72: 0 | G72: 2.895183196
A73: 2019-03-09 | B73: 6.8 | C73: 68 | D73: 1.9 | E73: 10.7 | F73: 0 | G73: 2.424067563
A74: 2019-03-10 | B74: 9.3 | C74: 85 | D74: 1.9 | E74: 0.4 | F74: 13 | G74: 1.257059471
A75: 2019-03-11 | B75: 9.5 | C75: 91 | D75: 3 | E75: 0.1 | F75: 14.5 | G75: 1.153822145
A76: 2019-03-12 | B76: 7.6 | C76: 89 | D76: 1.8 | E76: 4.8 | F76: 2.5 | G76: 1.614898169
A77: 2019-03-13 | B77: 6 | C77: 76 | D77: 5 | E77: 3.5 | F77: 0.5 | G77: 1.979078834
A78: 2019-03-14 | B78: 4 | C78: 80 | D78: 2.3 | E78: 2.9 | F78: 4 | G78: 1.438282777
A79: 2019-03-15 | B79: 5.9 | C79: 77 | D79: 2.6 | E79: 9 | F79: 0 | G79: 2.277861213
A80: 2019-03-16 | B80: 6.7 | C80: 79 | D80: 3.2 | E80: 4.3 | F80: 0 | G80: 1.880839791
A81: 2019-03-17 | B81: 4.5 | C81: 81 | D81: 2.8 | E81: 0.7 | F81: 1.5 | G81: 1.298428127
A82: 2019-03-18 | B82: 6.4 | C82: 65 | D82: 2.1 | E82: 9.4 | F82: 0 | G82: 2.560421962
A83: 2019-03-19 | B83: 9.3 | C83: 72 | D83: 1.7 | E83: 2.1 | F83: 0 | G83: 1.808008875
A84: 2019-03-20 | B84: 11.8 | C84: 67 | D84: 2.1 | E84: 8.6 | F84: 0 | G84: 3.014322176
A85: 2019-03-21 | B85: 14.9 | C85: 82 | D85: 1.9 | E85: 0.3 | F85: 2 | G85: 1.669902215
A86: 2019-03-22 | B86: 9.5 | C86: 72 | D86: 6.2 | E86: 0.4 | F86: 0 | G86: 2.30026811
A87: 2019-03-23 | B87: 6.4 | C87: 52 | D87: 5.2 | E87: 6.8 | F87: 0 | G87: 3.298407348
A88: 2019-03-24 | B88: 5.8 | C88: 68 | D88: 2.6 | E88: 8.2 | F88: 1.5 | G88: 2.531944898
A89: 2019-03-25 | B89: 7.6 | C89: 67 | D89: 1.7 | E89: 5.6 | F89: 0 | G89: 2.285744045
A90: 2019-03-26 | B90: 9.5 | C90: 73 | D90: 2.9 | E90: 7.4 | F90: 1.5 | G90: 2.770434636
A91: 2019-03-27 | B91: 12.4 | C91: 56 | D91: 3.3 | E91: 9.8 | F91: 0 | G91: 3.894283364
A92: 2019-03-28 | B92: 10.2 | C92: 71 | D92: 4.3 | E92: 5.7 | F92: 0 | G92: 2.902478484
A93: 2019-03-29 | B93: 9.1 | C93: 54 | D93: 1.9 | E93: 9.2 | F93: 0 | G93: 3.175596121
A94: 2019-03-30 | B94: 9.4 | C94: 81 | D94: 1.8 | E94: 0 | F94: 8.5 | G94: 1.459681681
A95: 2019-03-31 | B95: 8.2 | C95: 78 | D95: 5.7 | E95: 5.5 | F95: 3.5 | G95: 2.674575929
A96: 2019-04-01 | B96: 5.1 | C96: 84 | D96: 3.7 | E96: 4.1 | F96: 6 | G96: 1.877560591
A97: 2019-04-02 | B97: 4.4 | C97: 84 | D97: 3.7 | E97: 5.2 | F97: 5.5 | G97: 1.977923403
A98: 2019-04-03 | B98: 5.7 | C98: 71 | D98: 3.3 | E98: 8.4 | F98: 1 | G98: 2.768974922
A99: 2019-04-04 | B99: 8.2 | C99: 63 | D99: 2.1 | E99: 11.9 | F99: 0 | G99: 3.475738604
A100: 2019-04-05 | B100: 12.9 | C100: 56 | D100: 3.1 | E100: 10.9 | F100: 0 | G100: 4.292075495
A101: 2019-04-06 | B101: 12.6 | C101: 62 | D101: 2.6 | E101: 9.4 | F101: 0 | G101: 3.807194007
A102: 2019-04-07 | B102: 12 | C102: 65 | D102: 2.4 | E102: 8.9 | F102: 3 | G102: 3.578521098
A103: 2019-04-08 | B103: 12.2 | C103: 69 | D103: 4.2 | E103: 8.2 | F103: 11.5 | G103: 3.751127745
A104: 2019-04-09 | B104: 10.2 | C104: 60 | D104: 5.8 | E104: 10.1 | F104: 0 | G104: 4.410537167
A105: 2019-04-10 | B105: 8.2 | C105: 86 | D105: 2.7 | E105: 0 | F105: 22 | G105: 1.438411632
A106: 2019-04-11 | B106: 9.7 | C106: 63 | D106: 7.2 | E106: 9.3 | F106: 0 | G106: 4.42652883
A107: 2019-04-12 | B107: 10 | C107: 59 | D107: 4.2 | E107: 7.8 | F107: 0 | G107: 3.779079935
A108: 2019-04-13 | B108: 10.9 | C108: 59 | D108: 2.3 | E108: 10.2 | F108: 0 | G108: 3.853122534
A109: 2019-04-14 | B109: 11.4 | C109: 85 | D109: 1.4 | E109: 1.5 | F109: 6.5 | G109: 1.813540967
A110: 2019-04-15 | B110: 11.7 | C110: 68 | D110: 5 | E110: 10.2 | F110: 1.5 | G110: 4.331332875
A111: 2019-04-16 | B111: 11.5 | C111: 59 | D111: 1.8 | E111: 10.8 | F111: 0 | G111: 3.968048644
A112: 2019-04-17 | B112: 12.8 | C112: 81 | D112: 1.8 | E112: 2.2 | F112: 5.5 | G112: 2.183645269
A113: 2019-04-18 | B113: 13.9 | C113: 80 | D113: 1.8 | E113: 6.5 | F113: 0.5 | G113: 3.160158393
A114: 2019-04-19 | B114: 13.3 | C114: 75 | D114: 3.6 | E114: 3.4 | F114: 0 | G114: 2.873585148
A115: 2019-04-20 | B115: 13.2 | C115: 62 | D115: 2.2 | E115: 11.6 | F115: 0 | G115: 4.458855779
A116: 2019-04-21 | B116: 16 | C116: 74 | D116: 1.8 | E116: 3.4 | F116: 0 | G116: 2.867616039
A117: 2019-04-22 | B117: 16.1 | C117: 73 | D117: 2 | E117: 10.2 | F117: 0 | G117: 4.41417714
A118: 2019-04-23 | B118: 16.8 | C118: 73 | D118: 2.4 | E118: 7.9 | F118: 0 | G118: 4.08792831
A119: 2019-04-24 | B119: 18 | C119: 87 | D119: 2.1 | E119: 0 | F119: 6.5 | G119: 1.924417281
A120: 2019-04-25 | B120: 16.7 | C120: 93 | D120: 1.6 | E120: 0.2 | F120: 3 | G120: 1.71852139
A121: 2019-04-26 | B121: 14.4 | C121: 87 | D121: 2.6 | E121: 1.5 | F121: 1 | G121: 2.137826758
A122: 2019-04-27 | B122: 10.5 | C122: 67 | D122: 7.8 | E122: 7.8 | F122: 2.5 | G122: 4.469966825
A123: 2019-04-28 | B123: 11.1 | C123: 59 | D123: 2 | E123: 7.7 | F123: 0 | G123: 3.629599661
A124: 2019-04-29 | B124: 12.2 | C124: 79 | D124: 1.3 | E124: 0 | F124: 16 | G124: 1.789461334
A125: 2019-04-30 | B125: 15 | C125: 91 | D125: 2 | E125: 0 | F125: 24 | G125: 1.700040527
A126: 2019-05-01 | B126: 14.5 | C126: 94 | D126: 1.7 | E126: 0 | F126: 8 | G126: 1.590185582
A127: 2019-05-02 | B127: 16 | C127: 65 | D127: 2 | E127: 11.5 | F127: 0 | G127: 4.961007711
A128: 2019-05-03 | B128: 15.8 | C128: 68 | D128: 1.7 | E128: 7.6 | F128: 0 | G128: 3.993327007
A129: 2019-05-04 | B129: 16.2 | C129: 65 | D129: 1.9 | E129: 13 | F129: 0 | G129: 5.323962108
A130: 2019-05-05 | B130: 17.6 | C130: 63 | D130: 2 | E130: 10 | F130: 0 | G130: 4.934345189
A131: 2019-05-06 | B131: 16.7 | C131: 73 | D131: 3 | E131: 7.8 | F131: 5.5 | G131: 4.324880409
A132: 2019-05-07 | B132: 12.6 | C132: 57 | D132: 6.7 | E132: 13.3 | F132: 0 | G132: 6.157700965
A133: 2019-05-08 | B133: 13.8 | C133: 52 | D133: 2.1 | E133: 11.7 | F133: 0 | G133: 4.96029935
A134: 2019-05-09 | B134: 15 | C134: 61 | D134: 1.6 | E134: 3 | F134: 0 | G134: 3.098021334
A135: 2019-05-10 | B135: 16.9 | C135: 69 | D135: 1.7 | E135: 11.6 | F135: 0 | G135: 5.110139404
A136: 2019-05-11 | B136: 18.2 | C136: 57 | D136: 2 | E136: 12.2 | F136: 0 | G136: 5.678811783
A137: 2019-05-12 | B137: 17.8 | C137: 66 | D137: 2 | E137: 12.5 | F137: 0 | G137: 5.590191409
A138: 2019-05-13 | B138: 19.8 | C138: 74 | D138: 2 | E138: 11.8 | F138: 0 | G138: 5.656645685
A139: 2019-05-14 | B139: 19.2 | C139: 75 | D139: 2.6 | E139: 1.7 | F139: 0 | G139: 3.006992841
A140: 2019-05-15 | B140: 19.2 | C140: 67 | D140: 2.5 | E140: 9.4 | F140: 0 | G140: 5.183147157
A141: 2019-05-16 | B141: 20.4 | C141: 65 | D141: 2.3 | E141: 12.3 | F141: 0 | G141: 6.111647852
A142: 2019-05-17 | B142: 20.8 | C142: 62 | D142: 3.1 | E142: 12 | F142: 0 | G142: 6.375788309
A143: 2019-05-18 | B143: 20.7 | C143: 57 | D143: 4.3 | E143: 1.3 | F143: 0 | G143: 4.169454177
A144: 2019-05-19 | B144: 21.1 | C144: 57 | D144: 5 | E144: 9.2 | F144: 0 | G144: 6.434049682
A145: 2019-05-20 | B145: 20.5 | C145: 67 | D145: 4.4 | E145: 1.6 | F145: 4 | G145: 3.805494402
A146: 2019-05-21 | B146: 18.1 | C146: 73 | D146: 3.7 | E146: 7.3 | F146: 45.5 | G146: 4.638396144
A147: 2019-05-22 | B147: 17.6 | C147: 60 | D147: 2.3 | E147: 13.1 | F147: 0 | G147: 5.948961717
A148: 2019-05-23 | B148: 19.1 | C148: 49 | D148: 1.9 | E148: 13.3 | F148: 0 | G148: 6.239962529
A149: 2019-05-24 | B149: 21.1 | C149: 51 | D149: 2 | E149: 13.5 | F149: 0 | G149: 6.659401008
A150: 2019-05-25 | B150: 22.6 | C150: 52 | D150: 1.8 | E150: 12.9 | F150: 0 | G150: 6.701993983
A151: 2019-05-26 | B151: 23.4 | C151: 58 | D151: 1.6 | E151: 10.4 | F151: 0 | G151: 6.064654374
A152: 2019-05-27 | B152: 24.2 | C152: 57 | D152: 2.1 | E152: 7.7 | F152: 0 | G152: 5.614173199
A153: 2019-05-28 | B153: 19.6 | C153: 80 | D153: 2.7 | E153: 0 | F153: 11.5 | G153: 2.475227314
A154: 2019-05-29 | B154: 18.3 | C154: 63 | D154: 4 | E154: 6.1 | F154: 0 | G154: 4.806748142
A155: 2019-05-30 | B155: 18.6 | C155: 54 | D155: 2.2 | E155: 13 | F155: 0 | G155: 6.194612671
A156: 2019-05-31 | B156: 19.2 | C156: 74 | D156: 2 | E156: 1 | F156: 0 | G156: 2.81175039
A157: 2019-06-01 | B157: 20.8 | C157: 67 | D157: 2 | E157: 11.6 | F157: 0 | G157: 6.012694131
A158: 2019-06-02 | B158: 20.2 | C158: 71 | D158: 1.8 | E158: 0 | F158: 0 | G158: 2.660686509
A159: 2019-06-03 | B159: 22.7 | C159: 69 | D159: 1.9 | E159: 10.4 | F159: 0 | G159: 5.950933833
A160: 2019-06-04 | B160: 23.7 | C160: 71 | D160: 2.1 | E160: 9.8 | F160: 0 | G160: 5.956571868
A161: 2019-06-05 | B161: 23.7 | C161: 72 | D161: 2.6 | E161: 7.7 | F161: 0 | G161: 5.403294983
A162: 2019-06-06 | B162: 23.5 | C162: 61 | D162: 2.3 | E162: 10.3 | F162: 0 | G162: 6.289778045
A163: 2019-06-07 | B163: 20.1 | C163: 86 | D163: 1.7 | E163: 0 | F163: 34.5 | G163: 2.207817761
A164: 2019-06-08 | B164: 20 | C164: 85 | D164: 4.9 | E164: 1.4 | F164: 2 | G164: 2.984396023
A165: 2019-06-09 | B165: 19.8 | C165: 78 | D165: 2.2 | E165: 0.7 | F165: 0 | G165: 2.700563347
A166: 2019-06-10 | B166: 19.1 | C166: 94 | D166: 1.3 | E166: 1.4 | F166: 23 | G166: 2.326188282
A167: 2019-06-11 | B167: 20.3 | C167: 80 | D167: 2.4 | E167: 6.2 | F167: 1.5 | G167: 4.281263723
A168: 2019-06-12 | B168: 20.8 | C168: 77 | D168: 2.5 | E168: 10.2 | F168: 0 | G168: 5.588876803
A169: 2019-06-13 | B169: 22.3 | C169: 69 | D169: 2.2 | E169: 13.4 | F169: 0 | G169: 6.852438298
A170: 2019-06-14 | B170: 22.3 | C170: 70 | D170: 3.4 | E170: 1.7 | F170: 0 | G170: 3.69651847
A171: 2019-06-15 | B171: 20 | C171: 80 | D171: 3.7 | E171: 0.3 | F171: 30.5 | G171: 2.757386773
A172: 2019-06-16 | B172: 18.8 | C172: 83 | D172: 5.4 | E172: 0.9 | F172: 2 | G172: 2.921590055
A173: 2019-06-17 | B173: 19.5 | C173: 73 | D173: 3.9 | E173: 11.9 | F173: 0.5 | G173: 6.193397188
A174: 2019-06-18 | B174: 20.7 | C174: 67 | D174: 1.9 | E174: 8.7 | F174: 0 | G174: 5.222306741
A175: 2019-06-19 | B175: 22.6 | C175: 71 | D175: 2.1 | E175: 10.6 | F175: 0 | G175: 6.039180367
A176: 2019-06-20 | B176: 23.7 | C176: 70 | D176: 1.9 | E176: 12 | F176: 0 | G176: 6.62464023
A177: 2019-06-21 | B177: 23.7 | C177: 70 | D177: 2.1 | E177: 6.2 | F177: 0 | G177: 4.893947078
A178: 2019-06-22 | B178: 23.5 | C178: 75 | D178: 3.4 | E178: 8 | F178: 0 | G178: 5.569027197
A179: 2019-06-23 | B179: 21.9 | C179: 73 | D179: 3 | E179: 2.1 | F179: 0 | G179: 3.579527561
A180: 2019-06-24 | B180: 22.4 | C180: 68 | D180: 3.4 | E180: 10.1 | F180: 0 | G180: 6.218526131
A181: 2019-06-25 | B181: 23.5 | C181: 64 | D181: 2 | E181: 14 | F181: 0 | G181: 7.25735595
A182: 2019-06-26 | B182: 25 | C182: 68 | D182: 2.1 | E182: 8.9 | F182: 0 | G182: 5.955509201
A183: 2019-06-27 | B183: 24.7 | C183: 85 | D183: 2 | E183: 0 | F183: 11 | G183: 2.516876274
A184: 2019-06-28 | B184: 24 | C184: 93 | D184: 1.6 | E184: 2.6 | F184: 14 | G184: 3.092741702
A185: 2019-06-29 | B185: 25 | C185: 90 | D185: 1.7 | E185: 1 | F185: 6 | G185: 2.690365298
A186: 2019-06-30 | B186: 24.5 | C186: 93 | D186: 2.9 | E186: 0 | F186: 22 | G186: 2.279134058
A187: 2019-07-01 | B187: 24.1 | C187: 87 | D187: 1.6 | E187: 1.7 | F187: 6.5 | G187: 2.949690012
A188: 2019-07-02 | B188: 24.3 | C188: 83 | D188: 1.4 | E188: 0.9 | F188: 2.5 | G188: 2.778958546
A189: 2019-07-03 | B189: 23.8 | C189: 89 | D189: 1.2 | E189: 0.1 | F189: 3.5 | G189: 2.292034901
A190: 2019-07-04 | B190: 24.5 | C190: 85 | D190: 2.5 | E190: 7 | F190: 15 | G190: 4.942972624
A191: 2019-07-05 | B191: 23.4 | C191: 79 | D191: 1.8 | E191: 0.2 | F191: 0 | G191: 2.66925133
A192: 2019-07-06 | B192: 23.3 | C192: 83 | D192: 2.6 | E192: 3.8 | F192: 0 | G192: 3.802829073
A193: 2019-07-07 | B193: 24.3 | C193: 77 | D193: 4.2 | E193: 9.4 | F193: 0 | G193: 6.195954731
A194: 2019-07-08 | B194: 24.2 | C194: 75 | D194: 2.4 | E194: 7 | F194: 0 | G194: 5.122235087
A195: 2019-07-09 | B195: 23.5 | C195: 80 | D195: 1.8 | E195: 0.5 | F195: 1.5 | G195: 2.730494463
A196: 2019-07-10 | B196: 24.4 | C196: 71 | D196: 2.4 | E196: 2.8 | F196: 0 | G196: 3.92305722
A197: 2019-07-11 | B197: 21.5 | C197: 87 | D197: 1.8 | E197: 0 | F197: 30.5 | G197: 2.241741881
A198: 2019-07-12 | B198: 23.2 | C198: 85 | D198: 2.7 | E198: 3 | F198: 0.5 | G198: 3.46273506
A199: 2019-07-13 | B199: 22.7 | C199: 86 | D199: 1.9 | E199: 0.1 | F199: 12 | G199: 2.370441843
A200: 2019-07-14 | B200: 22.2 | C200: 92 | D200: 2 | E200: 0.4 | F200: 22 | G200: 2.253056386
... 172 more rows
